[Event "Slovakia Open 2022"]
[Site "Bratislava"]
[Date "2022.10.01"]
[Round "6.1"]
[White "Korobov, Anton"]
[Black "Heberla, Bartlomiej"]
[Result "1/2-1/2"]
[ECO "D35"]
[WhiteElo "2671"]
[BlackElo "2568"]
[Annotator "TA"]
[PlyCount "113"]
[EventDate "2022.09.30"]
[EventCountry "SVK"]
[SourceTitle "playchess.com"]
[Source "ChessBase"]
[SourceQuality "1"]
[TimeControl "2700+10"]

{[%evp 15,113,16,19,14,18,20,16,0,9,18,19,0,0,0,0,-72,-77,-70,-68,-76,-62,-78,-70,-71,-87,-82,-89,-87,-48,-68,-60,-41,-44,-34,-23,-17,-19,-43,-17,-22,-8,-8,-8,-20,0,0,0,0,0,0,0,0,0,0,0,0,0,0,0,0,12,12,13,13,12,12,9,8,9,0,0,0,0,0,0,0,0,0,0,0,0,0,0,0,0,0,0,0,0,0,0,0,0,0,0,0,0,0,0,0]} 1. d4 {[%emt 0:00:05]} d5 {[%emt 0:00:10]} 2. c4 {[%emt 0:00:03]} e6 {[%emt 0:00:01]} 3. Nc3 {[%emt 0:00:02]} Nf6 {[%emt 0:00:02]} 4. cxd5 {[%emt 0:00:05]} exd5 {[%emt 0:00:02]} 5. Bg5 {[%emt 0:00:03]} c6 {[%emt 0:00:02]} 6. e3 {[%emt 0:00:03]} h6 {[%emt 0:00:02]} 7. Bh4 {[%emt 0:00:07]} Be7 {[%emt 0:00:02]} 8. Bd3 {[%emt 0:00:21]} O-O {[%emt 0:00:05]} 9. Nge2 $1 {[%emt 0:00:07][%mdl 4] is more profitable than 9.Qc2 at the moment. D35: Queen's Gambit Declined: Exchange Variation.} Re8 {[%emt 0:00:06]} 10. O-O {[%emt 0:00:10]} Nbd7 {[%emt 0:00:02]} 11. a4 {[%emt 0:00:13] [#]} Bd6 $5 $146 {[%emt 0:00:06][%cal Od6h2][%mdl 8] New and interesting.} ({Predecessor:} 11... a5 12. f3 Nf8 13. Kh1 Qb6 14. Qd2 Be6 15. Bf2 Rad8 16. Rad1 Bb4 17. Qc1 Qc7 {0-1 (50) Santos Latasa,J (2680)-Korobov,A (2671) Bydgoszcz 2022}) 12. Kh1 {[%emt 0:00:33]} a5 {[%emt 0:00:02]} 13. Qd2 {[%emt 0:00:44]} Qe7 {[%emt 0:00:03]} 14. Rae1 {[%emt 0:01:00]} Bb8 {[%emt 0:00:24]} 15. Ng3 {[%emt 0:00:56] Inhibits Ne4.} (15. Qc2 $11) 15... Ne4 $17 {[%emt 0:00:26]} 16. Bxe4 {[%emt 0:04:19]} Qxh4 {[%emt 0:00:02]} 17. Bf5 {[%emt 0:02:08]} g6 {[%emt 0:04:24]} 18. Bxd7 {[%emt 0:04:41]} Bxd7 {[%emt 0:00:03]} 19. f4 {[%emt 0:01:59]} Bd6 {[%emt 0:02:14]} 20. e4 {[%emt 0:02:17] [#]} dxe4 {[%emt 0:05:29]} 21. Ngxe4 {[%emt 0:04:26]} Bb4 {[%emt 0:00:32]} 22. Nc5 $1 {[%emt 0:00:55]} Bxc5 {[%emt 0:00:58]} 23. dxc5 {[%emt 0:00:03]} Bf5 {[%emt 0:00:02]} 24. Kg1 {[%emt 0:00:30][%cal Bh1g1,Bg1h2,Bh2g3,Bg3h4][%mdl 32]} Rad8 {[%emt 0:01:52]} (24... Red8 {with more complications.} 25. Qe3 Rd3 26. Qe5 Rd2) 25. Rxe8+ $1 {[%emt 0:00:20]} Rxe8 {[%emt 0:00:01]} 26. Qf2 {[%emt 0:00:37]} Qe7 {[%emt 0:01:25]} 27. Rd1 {[%emt 0:00:57][%cal Bf1d1,Bd1d6,Bd6c6,Bc6c5][%mdl 32] The position is equal.} Qe6 {[%emt 0:04:06]} 28. h3 {[%emt 0:00:54]} h5 {[%emt 0:00:18]} 29. Kh2 {[%emt 0:02:40]} Qc4 {[%emt 0:00:52]} 30. Rd6 {[%emt 0:00:40]} Qb4 {[%emt 0:01:31]} 31. Kg3 {[%emt 0:00:27]} Rb8 {[%emt 0:10:42]} 32. Kh4 {[%emt 0:02:31]} b6 {[%emt 0:00:28]} 33. Rxc6 {[%emt 0:01:30]} bxc5 {[%emt 0:00:03][%mdl 64] [#] Remove Defender} 34. Rxc5 {[%emt 0:00:33] Strongly threatening Nd5.} Qxb2 {[%emt 0:00:23]} 35. Qxb2 {[%emt 0:00:16]} Rxb2 $11 {[%emt 0:00:02][%mdl 4096] Endgame KRB-KRN} 36. g4 {[%emt 0:00:04]} hxg4 {[%emt 0:00:03]} 37. hxg4 {[%emt 0:00:02]} Bd7 {[%emt 0:02:17]} 38. Rxa5 {[%emt 0:00:33]} Rg2 {[%emt 0:02:46]} 39. f5 {[%emt 0:00:05]} gxf5 {[%emt 0:00:53]} 40. gxf5 {[%emt 0:00:02]} Rc2 {[%emt 0:03:51]} 41. Nd5 {[%emt 0:00:29]} Kg7 {[%emt 0:00:08] Against Nf6} 42. Nb6 {[%emt 0:01:54]} Bc6 {[%emt 0:00:28]} 43. Ra7 {[%emt 0:01:27]} Kf6 {[%emt 0:00:50]} 44. a5 {[%emt 0:00:41]} Ra2 {[%emt 0:03:05]} 45. Kg4 {[%emt 0:00:41]} Rg2+ {[%emt 0:00:19]} 46. Kf4 {[%emt 0:00:06]} Rf2+ {[%emt 0:00:01]} 47. Ke3 {[%emt 0:00:02]} Rxf5 {[%emt 0:00:09]} 48. Kd4 {[%emt 0:00:04]} Ke6 {[%emt 0:00:10]} 49. Kc4 {[%emt 0:02:47]} Rf1 {[%emt 0:00:12]} 50. Kc5 {[%emt 0:00:57]} Rc1+ {[%emt 0:00:02]} 51. Nc4 {[%emt 0:00:09]} Bg2 {[%emt 0:00:01] And now ...Bf1 would win.} 52. Kd4 {[%emt 0:00:17]} Bf1 {[%emt 0:00:12]} 53. Ne3 {[%emt 0:00:10]} Be2 {[%emt 0:00:19]} 54. Rb7 {[%emt 0:00:33]} Ra1 {[%emt 0:00:15]} 55. Rb6+ {[%emt 0:00:16]} Kd7 {[%emt 0:00:08]} 56. Rb7+ {[%emt 0:00:38]} Kc6 {[%emt 0:00:10]} 57. Rxf7 {[%emt 0:00:43] Weighted Error Value: White=0.05 (flawless) /Black=0.04 (flawless)} 1/2-1/2

[Event "Slovakia Open 2022"]
[Site "Bratislava"]
[Date "2022.10.01"]
[Round "6.2"]
[White "Stocek, Jiri"]
[Black "Laurusas, Tomas"]
[Result "1/2-1/2"]
[ECO "D23"]
[WhiteElo "2559"]
[BlackElo "2563"]
[Annotator "TA"]
[PlyCount "46"]
[EventDate "2022.09.30"]
[EventCountry "SVK"]
[SourceTitle "playchess.com"]
[Source "ChessBase"]
[SourceQuality "1"]
[TimeControl "2700+10"]

{[%evp 13,46,13,28,14,0,2,14,9,24,19,29,9,21,13,17,0,30,35,48,33,58,17,15,12,26,14,18,2,12,12,20,10,15,13,13]} 1. c4 {[%emt 0:00:05]} c6 {[%emt 0:00:02]} 2. Nf3 {[%emt 0:00:10]} d5 {[%emt 0:00:05]} 3. d4 {[%emt 0:00:38]} Nf6 {[%emt 0:00:02]} 4. Qb3 {[%emt 0:00:17]} dxc4 {[%emt 0:00:23]} 5. Qxc4 {[%emt 0:00:03]} Bf5 {[%emt 0:00:03]} 6. g3 {[%emt 0:00:26]} e6 {[%emt 0:00:07]} 7. Bg2 {[%emt 0:00:03]} Be7 {[%emt 0:00:03]} 8. O-O {[%emt 0:00:06] D23: Queen's Gambit Accepted: 3 Nf3 Nf6 sidelines.} O-O {[%emt 0:00:04]} 9. e3 {[%emt 0:00:36]} Nbd7 {[%emt 0:02:47]} 10. Rd1 {[%emt 0:00:20]} h6 {[%emt 0:03:03]} (10... e5 {feels hotter.} 11. Nc3 Bg4 12. h3 Bxf3 13. Bxf3 Qc7) 11. Qe2 {[%emt 0:01:59] 11.Nc3 is not played anymore.} Bh7 $1 {[%emt 0:02:19][%mdl 4] [#] is currently scoring better than 11...Qc7.} 12. Bd2 $146 {[%emt 0:01:34]} ({Predecessor:} 12. Nc3 Re8 13. e4 Bf8 14. Bf4 Qb6 15. a3 a5 16. Rac1 a4 17. h3 Qa6 18. Qe1 {1-0 (44) Donchenko,A (2599)-Jobava,B (2600) Chess.com INT 2022}) 12... a5 {[%emt 0:04:41]} 13. Be1 {[%emt 0:00:33]} a4 {[%emt 0:00:54]} 14. a3 {[%emt 0:04:54]} Qc7 {[%emt 0:01:59]} 15. Nc3 {[%emt 0:00:27]} e5 {[%emt 0:00:07]} 16. dxe5 {[%emt 0:03:20]} Nxe5 {[%emt 0:03:35]} 17. Rac1 {[%emt 0:01:30]} Nxf3+ {[%emt 0:00:40]} 18. Bxf3 {[%emt 0:00:19]} Rfd8 {[%emt 0:00:32]} 19. Rxd8+ {[%emt 0:01:23]} Qxd8 {[%emt 0:00:13] The position is equal.} 20. e4 {[%emt 0:00:10]} Nd7 {[%emt 0:00:09]} 21. Rd1 {[%emt 0:02:13] [#] Threatens to win with Bg4.} Qc7 {[%emt 0:01:28]} 22. Bg2 {[%emt 0:00:43]} Nc5 {[%emt 0:02:00]} 23. f4 {[%emt 0:00:41]} Rd8 {[%emt 0:00:22] Weighted Error Value: White=0.10 (very precise) /Black=0.08 (flawless)} 1/2-1/2

[Event "Slovakia Open 2022"]
[Site "Bratislava"]
[Date "2022.10.01"]
[Round "6.3"]
[White "Leniart, Arkadiusz"]
[Black "Slovak, Kilian"]
[Result "1-0"]
[ECO "B22"]
[WhiteElo "2479"]
[BlackElo "2278"]
[Annotator "TA"]
[PlyCount "125"]
[EventDate "2022.09.30"]
[EventCountry "SVK"]
[SourceTitle "playchess.com"]
[Source "ChessBase"]
[SourceQuality "1"]
[TimeControl "2700+10"]

{[%evp 18,125,11,0,0,0,0,-19,-16,-16,-29,-8,-8,-21,-15,-8,50,37,56,56,80,71,113,104,104,95,104,108,109,113,112,121,115,63,63,69,72,39,52,0,77,67,89,85,87,78,90,84,172,177,175,73,77,83,77,66,67,41,101,112,96,68,68,72,153,150,179,178,150,145,156,143,179,175,184,185,177,127,138,126,184,170,191,189,262,263,264,242,263,260,270,252,553,232,220,214,246,246,245,254,253,233,239,239,326,324,336,320,6087,6073]} 1. e4 {[%emt 0:00:05]} c5 {[%emt 0:00:17]} 2. c3 {[%emt 0:00:01]} Nf6 {[%emt 0:00:03]} 3. e5 {[%emt 0:00:02]} Nd5 {[%emt 0:00:01]} 4. Bc4 {[%emt 0:00:02]} e6 {[%emt 0:00:03]} 5. d4 {[%emt 0:00:15]} cxd4 {[%emt 0:00:08]} 6. cxd4 {[%emt 0:00:03]} d6 {[%emt 0:00:13]} 7. Nf3 {[%emt 0:00:06]} Nc6 {[%emt 0:00:21]} 8. O-O {[%emt 0:00:06]} Be7 {[%emt 0:00:17]} 9. Qe2 {[%emt 0:00:02]} O-O {[%emt 0:00:08]} 10. a3 {[%emt 0:00:25] 10.Rd1 is a critical line.} Qb6 {[%emt 0:04:23] B22: Sicilian: 2 c3.} 11. Qe4 {[%emt 0:09:18]} Na5 {[%emt 0:01:33]} 12. Nbd2 {[%emt 0:00:03]} (12. Bxd5 exd5 13. Qd3 dxe5 14. dxe5 Nb3 $17) 12... Nxc4 {[%emt 0:04:06] The position is equal.} 13. Nxc4 {[%emt 0:00:02]} Qa6 {[%emt 0:03:50] [#]} 14. Ne3 $146 {[%emt 0:00:16]} ({Predecessor:} 14. Nxd6 Bxd6 15. exd6 f6 16. Bd2 Qxd6 17. Rac1 Bd7 18. Rc5 Rac8 19. Rfc1 Rc6 20. Ne1 {½-½ (60) Kazakos,E (2107)-Kalogeris,I (2385) Chania 2018}) 14... f5 {[%emt 0:06:44]} 15. Qc2 {[%emt 0:00:02]} Nxe3 {[%emt 0:02:29]} 16. Bxe3 {[%emt 0:00:02][%cal Bc1e3,Be3d2,Bd2b4][%mdl 32]} f4 {[%emt 0:00:10]} (16... Bd7 $11) 17. Bd2 $14 {[%emt 0:00:02]} Bd7 {[%emt 0:02:55]} 18. Bb4 $1 {[%emt 0:01:06]} Qb6 {[%emt 0:05:33] Against Qc7} 19. Rac1 {[%emt 0:02:56][%cal Od4d5]} Rfc8 {[%emt 0:04:59]} 20. Qd2 {[%emt 0:01:12]} Rxc1 {[%emt 0:01:01]} 21. Rxc1 {[%emt 0:00:03]} a5 {[%emt 0:00:01]} 22. Bxd6 {[%emt 0:06:36]} Bxd6 {[%emt 0:00:02]} 23. exd6 {[%emt 0:00:01]} Qxd6 {[%emt 0:00:08]} 24. Ne5 {[%emt 0:00:23]} Rf8 {[%emt 0:01:36]} 25. Qxa5 {[%emt 0:04:36]} (25. h3 $16) 25... Qxd4 {[%emt 0:01:57]} 26. Qc3 {[%emt 0:00:33]} Qd5 {[%emt 0:02:33]} 27. Qc5 {[%emt 0:01:25] Qxd5 is the strong threat.} Qd2 {[%emt 0:00:15]} 28. Qc3 {[%emt 0:03:35]} Qd5 {[%emt 0:00:43]} 29. h4 {[%emt 0:00:07]} h6 {[%emt 0:03:07]} 30. Ng6 {[%emt 0:06:22]} Rf7 {[%emt 0:00:01] Against Ne7+} 31. Qe5 {[%emt 0:00:40]} Bc6 {[%emt 0:00:31][%csl Gc6][%cal Rd5g2]} 32. f3 {[%emt 0:00:02]} ({But not} 32. Qb8+ $6 Kh7 33. Rxc6 (33. Nxf4 Rxf4 34. f3 Qd4+ 35. Kh1 e5 36. Kh2 Rxh4+ 37. Kg3 Qf4+ 38. Kf2 Qd2+ 39. Kg3 Rg4+ 40. Kxg4 Qxg2+ 41. Kh4 Qh2+ 42. Kg4 Bd7#) 33... bxc6 34. Nf8+ Kg8 35. Ng6+ Kh7 36. Nf8+ Kg8 37. Ng6+ Kh7 $11) 32... Rd7 {[%emt 0:00:11]} (32... Kh7 $16 33. Qxd5 exd5) 33. Qb8+ $18 {[%emt 0:00:39]} Rd8 {[%emt 0:00:10]} 34. Ne7+ {[%emt 0:00:13]} (34. Qxf4 $18 {has better winning chances. Black must now prevent Ne7+.} Re8 35. Ne5) 34... Kf7 $16 {[%emt 0:00:09] And now ...Qd4+ would win.} 35. Nxd5 {[%emt 0:00:37] White is much more active.} Rxb8 {[%emt 0:00:01]} 36. Nxf4 {[%emt 0:00:03][%cal Bd5f4,Bf4e2,Be2c3][%mdl 4128] Endgame KRB-KRN} Rd8 $1 {[%emt 0:00:10]} 37. Rc2 {[%emt 0:00:18]} g5 {[%emt 0:00:20]} (37... Rd4 $14 38. Ne2 Rxh4) 38. hxg5 {[%emt 0:00:04]} hxg5 {[%emt 0:00:10]} 39. Ne2 {[%emt 0:00:06]} Kf6 {[%emt 0:00:08]} 40. Kf2 {[%emt 0:00:26]} Ba4 {[%emt 0:00:12] [#]} (40... e5 $142) 41. Rc4 $1 {[%emt 0:00:16]} Bb5 {[%emt 0:00:10]} 42. Rd4 {[%emt 0:00:10]} Rh8 {[%emt 0:00:10]} 43. Nc3 {[%emt 0:00:04]} Bc6 {[%emt 0:00:01]} 44. Ne4+ {[%emt 0:01:23]} Kf5 {[%emt 0:00:18]} 45. Rb4 {[%emt 0:00:05]} Rd8 {[%emt 0:00:20]} 46. g4+ {[%emt 0:02:03]} Kg6 {[%emt 0:00:00]} 47. Nc5 {[%emt 0:01:05]} (47. Rb6 $18) 47... Rf8 {[%emt 0:00:09]} 48. f4 {[%emt 0:00:33]} ({Don't do} 48. Nxe6 Rxf3+ 49. Ke2 Rf6 $16) 48... gxf4 {[%emt 0:00:12]} (48... Bd5 $16 {might work better.}) 49. Nxe6 $18 {[%emt 0:00:01]} Rh8 {[%emt 0:00:10]} 50. Nxf4+ {[%emt 0:00:04]} Kg5 {[%emt 0:00:06]} (50... Kf6 $142 51. Kg3 Re8) 51. Ne6+ {[%emt 0:00:16]} Kf6 {[%emt 0:00:01]} 52. Nc5 {[%emt 0:00:03]} Rh2+ {[%emt 0:00:18]} 53. Kg3 {[%emt 0:00:18]} Rg2+ {[%emt 0:00:03]} 54. Kh3 {[%emt 0:00:03]} b5 $2 {[%emt 0:00:22] [#]} (54... Re2 55. Nxb7 Kg5) 55. Nd3 {[%emt 0:00:23]} (55. Re4 $142 $1 Rxb2 56. Re6+ Kg7 57. Rxc6) 55... Rd2 {[%emt 0:00:08]} 56. Nf4 {[%emt 0:00:11]} Rd1 {[%emt 0:00:11]} 57. Ne2 {[%emt 0:00:43]} Kg5 {[%emt 0:00:10]} 58. Kg3 {[%emt 0:00:27]} Rd3+ {[%emt 0:00:02]} 59. Kf2 {[%emt 0:00:05]} Rf3+ {[%emt 0:00:18]} 60. Ke1 {[%emt 0:00:03] aiming for Nd4.} Re3 {[%emt 0:00:10]} 61. Kd2 {[%emt 0:00:05]} Re5 {[%emt 0:00:01]} 62. Nd4 {[%emt 0:00:15]} Bd7 {[%emt 0:00:04]} (62... Rd5 63. Ke3 Bd7 64. Nf3+ Kf6 65. g5+ Kf7 66. Rf4+ Kg6 67. Rf6+ Kg7) 63. Nf3+ {[%emt 0:00:02] Weighted Error Value: White=0.17 (very precise) /Black=0.22 (precise)} 1-0

[Event "Slovakia Open 2022"]
[Site "Bratislava"]
[Date "2022.10.01"]
[Round "6.4"]
[White "Kostolansky, Sebastian Lukas"]
[Black "Kraus, Tomas"]
[Result "1/2-1/2"]
[ECO "B45"]
[WhiteElo "2398"]
[BlackElo "2479"]
[Annotator "TA"]
[PlyCount "69"]
[EventDate "2022.09.30"]
[EventCountry "SVK"]
[SourceTitle "playchess.com"]
[Source "ChessBase"]
[SourceQuality "1"]
[TimeControl "2700+10"]

{[%evp 12,69,4,8,6,-18,-20,-81,-3,-10,-9,-16,0,-31,0,0,0,-8,-7,-33,-7,-11,-14,-18,-14,-31,-21,-41,-14,-22,-10,-12,0,-29,-29,-33,-27,-27,-27,-35,-27,-27,0,0,0,-62,0,0,0,0,0,0,0,0,0,0,0,0,0,0]} 1. e4 {[%emt 0:00:06]} c5 {[%emt 0:00:01]} 2. Nf3 {[%emt 0:00:05]} e6 {[%emt 0:00:16]} 3. d4 {[%emt 0:00:41]} cxd4 {[%emt 0:00:03]} 4. Nxd4 {[%emt 0:00:02]} Nf6 {[%emt 0:00:10]} 5. Nc3 {[%emt 0:00:19]} Nc6 {[%emt 0:00:07]} 6. a3 {[%emt 0:01:22]} Be7 {[%emt 0:02:40]} 7. Be3 {[%emt 0:00:26]} O-O {[%emt 0:01:21] B45: Sicilian Four Knights.} 8. f3 {[%emt 0:03:04]} d5 {[%emt 0:01:46]} 9. Qd2 {[%emt 0:03:08] [#]} (9. exd5 $11 Nxd5 10. Nxd5 exd5 11. Qd3) 9... dxe4 $146 {[%emt 0:10:07]} (9... e5 $1 $17 {[%cal Re5d4]} 10. Nxc6 bxc6) ({Predecessor:} 9... e5 10. Nxc6 bxc6 11. Bg5 Be6 12. Bd3 Rb8 13. b4 a5 14. bxa5 Qxa5 15. O-O h6 16. Nxd5 {1-0 (51) Turan,F (1354)-Kazik,O (1888) Antalya 2020}) 10. Nxc6 $11 {[%emt 0:17:42]} bxc6 {[%emt 0:00:03]} 11. Nxe4 {[%emt 0:02:09]} Nxe4 {[%emt 0:05:43]} 12. fxe4 {[%emt 0:00:20]} Qxd2+ {[%emt 0:02:18]} (12... Qc7 {feels hotter.} 13. Bc4 Rd8 14. Qe2 Qe5) 13. Bxd2 {[%emt 0:01:42]} c5 {[%emt 0:01:47][%cal Bc6c5,Bc5c4][%mdl 32]} 14. O-O-O {[%emt 0:07:37]} Bb7 {[%emt 0:00:54]} 15. Bd3 {[%emt 0:01:28]} Rac8 {[%emt 0:03:58]} 16. c3 {[%emt 0:01:43]} c4 {[%emt 0:02:34]} 17. Bc2 {[%emt 0:00:01]} Bc5 {[%emt 0:01:05] Against Be3} 18. Bf4 {[%emt 0:01:34]} Rfd8 {[%emt 0:01:12]} 19. Be5 {[%emt 0:00:11]} f6 {[%emt 0:01:50]} 20. Bd4 {[%emt 0:00:05]} Bb6 {[%emt 0:00:04]} 21. Bxb6 {[%emt 0:01:32]} axb6 {[%emt 0:00:04]} 22. Rxd8+ {[%emt 0:00:05]} (22. Ba4 $5 {[%cal Ra4d7]}) 22... Rxd8 {[%emt 0:00:02]} 23. Rd1 {[%emt 0:00:01]} Rxd1+ {[%emt 0:00:31]} 24. Kxd1 $15 {[%emt 0:00:02][%mdl 4096] Endgame KB-KB} Kf7 {[%emt 0:02:07]} 25. Kd2 {[%emt 0:00:02]} e5 {[%emt 0:00:34]} 26. Ke3 {[%emt 0:00:02]} Ke6 {[%emt 0:00:44]} 27. Ba4 {[%emt 0:00:49]} Kd6 {[%emt 0:00:46]} 28. Be8 {[%emt 0:00:39]} (28. Bb5 $11) 28... Bc6 {[%emt 0:01:20]} ({Black should play} 28... f5 $1 $15 29. exf5 Bxg2) 29. Bf7 $1 $11 {[%emt 0:00:25] The position is equal.} Kc5 {[%emt 0:00:03]} 30. g3 {[%emt 0:00:08]} Ba4 {[%emt 0:00:20]} 31. Bg8 {[%emt 0:00:18]} h6 {[%emt 0:00:08]} 32. Bf7 {[%emt 0:00:09]} Bb3 {[%emt 0:00:19]} 33. Kf3 {[%emt 0:00:30]} Bd1+ {[%emt 0:00:39]} 34. Ke3 {[%emt 0:00:01]} b5 {[%emt 0:00:46]} 35. Be8 {[%emt 0:00:22] Weighted Error Value: White=0.14 (very precise) /Black=0.14 (very precise)} 1/2-1/2

[Event "Slovakia Open 2022"]
[Site "Bratislava"]
[Date "2022.10.01"]
[Round "6.5"]
[White "Yankelevich, Lev"]
[Black "Nestorenko, Dmitry"]
[Result "1/2-1/2"]
[ECO "D15"]
[WhiteElo "2484"]
[BlackElo "2168"]
[Annotator "TA"]
[PlyCount "93"]
[EventDate "2022.09.30"]
[EventCountry "SVK"]
[SourceTitle "playchess.com"]
[Source "ChessBase"]
[SourceQuality "1"]
[TimeControl "2700+10"]

{[%evp 9,93,49,89,36,33,50,61,26,20,20,14,15,20,0,0,-15,-18,-25,-14,-27,-22,-29,-5,-29,-18,-29,-26,-35,-21,-29,-31,-37,-37,-37,0,0,136,-7,-16,-16,0,-8,0,0,2,-6,0,-10,0,0,14,0,0,0,0,0,0,-44,-44,-56,-46,-189,-196,-188,-188,-174,-183,-143,-82,-131,-95,-94,-29,-28,-28,-28,-30,-35,-20,-20,-26,-81,-81,-81,-81,-81]} 1. Nf3 {[%emt 0:00:04]} Nf6 {[%emt 0:00:19]} 2. c4 {[%emt 0:00:05]} c6 {[%emt 0:00:04]} 3. d4 {[%emt 0:00:23]} d5 {[%emt 0:00:02]} 4. Nc3 {[%emt 0:00:02]} Bg4 {[%emt 0:00:16]} 5. cxd5 {[%emt 0:04:18]} Nxd5 {[%emt 0:00:04]} 6. Qb3 {[%emt 0:01:24] D15: Slav Defence: 4 Nc3 a6 and gambit lines after 4 Nc3 dxc4.} (6. Ne5 $16 Be6 7. e4 Nxc3 8. bxc3) 6... Qb6 {[%emt 0:04:01]} 7. Nxd5 {[%emt 0:04:38]} Qxb3 {[%emt 0:00:03]} 8. axb3 {[%emt 0:02:11] White is slightly better.} (8. Nc7+ {is more complex.} Kd7 9. Ne5+ Kxc7 10. axb3 Be6 11. Bf4) 8... cxd5 {[%emt 0:00:01]} 9. Ne5 {[%emt 0:00:01]} Bd7 {[%emt 0:00:04]} 10. e3 {[%emt 0:00:31] [#]} Nc6 $146 {[%emt 0:00:02]} ({Predecessor:} 10... e6 11. Bd2 a6 12. Be2 Bd6 13. Nd3 O-O 14. O-O Nc6 15. b4 Rfe8 16. Rfc1 g6 {1-0 (47) Mataraci,O (1658)-Toren,K (1400) Manavgat 2016}) 11. Nxd7 {[%emt 0:01:10]} Kxd7 {[%emt 0:00:01]} 12. Bb5 {[%emt 0:00:23]} e6 {[%emt 0:00:24]} 13. Bd2 {[%emt 0:00:10]} a6 {[%emt 0:00:28]} 14. Ke2 {[%emt 0:00:21]} Rc8 {[%emt 0:00:27]} 15. Bd3 {[%emt 0:00:22]} Bd6 {[%emt 0:01:33]} 16. Rac1 {[%emt 0:00:41]} h6 {[%emt 0:02:11]} 17. h3 {[%emt 0:00:04]} Nb4 {[%emt 0:00:34]} 18. Bb1 {[%emt 0:00:11]} Rc6 {[%emt 0:00:18]} 19. Rxc6 {[%emt 0:00:05]} Nxc6 {[%emt 0:00:02]} 20. Rc1 {[%emt 0:00:19]} Re8 {[%emt 0:00:43]} 21. g4 {[%emt 0:00:18]} e5 {[%emt 0:04:44]} 22. Bf5+ {[%emt 0:00:39]} Kc7 {[%emt 0:00:10] [#]} (22... Ke7 $11) 23. dxe5 {[%emt 0:01:10] White is more active.} (23. Ba5+ $1 $16 Kb8 24. Bd7) 23... Bxe5 $11 {[%emt 0:00:00]} 24. Rc2 {[%emt 0:00:41]} Kd6 {[%emt 0:00:16]} 25. Kf1 {[%emt 0:00:45]} Bf6 {[%emt 0:03:12]} 26. Bd3 {[%emt 0:01:01]} g6 {[%emt 0:03:13]} 27. Kg2 {[%emt 0:00:43]} Kd7 {[%emt 0:02:51]} 28. f4 {[%emt 0:01:53]} Bg7 {[%emt 0:03:56]} 29. Kf3 {[%emt 0:00:10]} Bf6 {[%emt 0:00:18]} 30. Bf1 {[%emt 0:03:52]} Rc8 {[%emt 0:01:39][%cal Oc6e5] And now ...Ne5+! would win.} 31. Kg3 {[%emt 0:00:17]} Ne7 {[%emt 0:00:58]} 32. Rxc8 {[%emt 0:00:04]} Nxc8 {[%emt 0:00:01][%mdl 4096] Endgame KBB-KBN} 33. Bc1 {[%emt 0:00:19]} (33. Bg2 $5 {[%cal Rg2d5]} Ne7 34. Bb4 $11) 33... Nd6 {[%emt 0:00:19]} 34. Bd3 {[%emt 0:00:10]} Kc6 {[%emt 0:00:57]} 35. h4 {[%emt 0:00:25]} (35. b4 $15) 35... Ne4+ $19 {[%emt 0:00:28]} 36. Kf3 {[%emt 0:00:16]} Nc5 {[%emt 0:00:04]} ({Worse is} 36... Bxh4 37. Bxe4 dxe4+ 38. Kxe4 $17) 37. Bc2 {[%emt 0:00:11]} Bxh4 {[%emt 0:00:30]} 38. b4 {[%emt 0:00:09] [#]} Ne6 {[%emt 0:00:25]} ({Black should play} 38... Ne4 $1 {...f5 is the strong threat.} 39. Bxe4 dxe4+ 40. Kxe4 Be1) 39. f5 {[%emt 0:00:05]} ({White should try} 39. Bd2) 39... gxf5 {[%emt 0:00:36]} 40. gxf5 {[%emt 0:00:24]} Nc7 {[%emt 0:00:29]} ({Better is} 40... Nd8 $17 41. Bd2 Kd6) 41. e4 $11 {[%emt 0:00:09]} Bf6 {[%emt 0:01:57]} 42. Bxh6 {[%emt 0:01:29]} Bxb2 {[%emt 0:00:08]} 43. Bb3 {[%emt 0:00:39]} dxe4+ {[%emt 0:00:10]} 44. Kxe4 {[%emt 0:00:03]} f6 {[%emt 0:00:04]} 45. Bf4 {[%emt 0:00:22]} (45. Ba4+ $11 Nb5 46. Kd3) 45... Bc3 $17 {[%emt 0:01:07]} 46. Bxc7 {[%emt 0:00:15]} Kxc7 {[%emt 0:00:02]} 47. b5 {[%emt 0:00:02] And White is the lucky defender.  Weighted Error Value: White=0.20 (precise) /Black=0.18 (very precise)} 1/2-1/2